[Event "*** Titled Tuesday Blitz"]
[Site "Chess.com"]
[Date "2019.11.05"]
[Round "3"]
[White "DanielNaroditsky"]
[Black "Barcelona_Guy"]
[Result "1-0"]
[WhiteElo "2975"]
[BlackElo "2745"]
[TimeControl "180+2"]
[EndTime "13:34:28 PST"]
[Termination "DanielNaroditsky won by resignation"]

1. Nf3 {[%clk 0:03:01.9]} 1... d5 {[%clk 0:03:00.4]} 2. g3 {[%clk 0:03:03]} 2...
Nf6 {[%clk 0:03:00.6]} 3. Bg2 {[%clk 0:03:04.3]} 3... c5 {[%clk 0:03:01.1]} 4.
O-O {[%clk 0:03:05.1]} 4... Nc6 {[%clk 0:03:02.6]} 5. d4 {[%clk 0:03:04.2]} 5...
cxd4 {[%clk 0:03:04.5]} 6. Nxd4 {[%clk 0:03:05.6]} 6... e5 {[%clk 0:03:06.2]} 7.
Nxc6 {[%clk 0:03:07.1]} 7... bxc6 {[%clk 0:03:08.1]} 8. c4 {[%clk 0:03:08.7]}
8... Be6 {[%clk 0:03:08.1]} 9. cxd5 {[%clk 0:03:06.2]} 9... cxd5 {[%clk
0:03:09]} 10. Nc3 {[%clk 0:03:07.5]} 10... Qd7 {[%clk 0:03:06.2]} 11. Bg5 {[%clk
0:03:03]} 11... Rd8 {[%clk 0:03:02.5]} 12. e4 {[%clk 0:02:29.8]} 12... d4 {[%clk
0:02:53]} 13. Bxf6 {[%clk 0:02:30.9]} 13... gxf6 {[%clk 0:02:52.3]} 14. Nd5
{[%clk 0:02:32.6]} 14... Bg7 {[%clk 0:02:31.1]} 15. Rc1 {[%clk 0:02:33.5]} 15...
Bxd5 {[%clk 0:02:18.8]} 16. exd5 {[%clk 0:02:34.2]} 16... f5 {[%clk 0:02:13.5]}
17. Qh5 {[%clk 0:02:22.2]} 17... O-O {[%clk 0:02:13.1]} 18. Bh3 {[%clk
0:02:13.9]} 18... Qxd5 {[%clk 0:02:14.1]} 19. Bxf5 {[%clk 0:02:14.7]} 19... h6
{[%clk 0:02:15.4]} 20. Qg4 {[%clk 0:01:57.9]} 20... Qxa2 {[%clk 0:02:00.9]} 21.
Rc6 {[%clk 0:01:58.2]} 21... Rfe8 {[%clk 0:01:18.1]} 22. Rxh6 {[%clk 0:01:53.1]}
22... d3 {[%clk 0:01:15.6]} 23. Rh7 {[%clk 0:01:51.3]} 1-0

[Event "*** Titled Tuesday Blitz"]
[Site "Chess.com"]
[Date "2019.11.05"]
[Round "3"]
[White "Adham_Fawzy"]
[Black "Misha_Bilous"]
[Result "1-0"]
[WhiteElo "2722"]
[BlackElo "2487"]
[TimeControl "180+2"]
[EndTime "13:34:56 PST"]
[Termination "Adham_Fawzy won on time"]

1. e4 {[%clk 0:03:01.9]} 1... c5 {[%clk 0:03:00.3]} 2. Nf3 {[%clk 0:03:02.4]}
2... d6 {[%clk 0:03:01.3]} 3. d4 {[%clk 0:03:03.2]} 3... cxd4 {[%clk 0:03:02.5]}
4. Nxd4 {[%clk 0:03:05.1]} 4... Nf6 {[%clk 0:03:03.6]} 5. Nc3 {[%clk 0:03:06.3]}
5... a6 {[%clk 0:03:05]} 6. Bg5 {[%clk 0:03:07.3]} 6... Nbd7 {[%clk 0:03:05.1]}
7. Qe2 {[%clk 0:03:07.9]} 7... h6 {[%clk 0:03:04.7]} 8. Bh4 {[%clk 0:03:08.7]}
8... g6 {[%clk 0:03:05.8]} 9. f4 {[%clk 0:03:09.8]} 9... e5 {[%clk 0:03:00.9]}
10. fxe5 {[%clk 0:03:11]} 10... dxe5 {[%clk 0:02:54.8]} 11. O-O-O {[%clk
0:03:11.7]} 11... Qc7 {[%clk 0:02:52.4]} 12. Nb3 {[%clk 0:03:12.8]} 12... b5
{[%clk 0:02:49.7]} 13. Rxd7 {[%clk 0:03:13.3]} 13... Nxd7 {[%clk 0:02:44.3]} 14.
Nd5 {[%clk 0:03:14.2]} 14... Qb8 {[%clk 0:02:45.6]} 15. Na5 {[%clk 0:03:14.6]}
15... Bb7 {[%clk 0:02:42.6]} 16. Qd2 {[%clk 0:03:13.2]} 16... Bxd5 {[%clk
0:02:14.5]} 17. Qxd5 {[%clk 0:03:12.3]} 17... Bd6 {[%clk 0:02:15.8]} 18. Be2
{[%clk 0:03:07.6]} 18... O-O {[%clk 0:02:12]} 19. Rd1 {[%clk 0:03:08.3]} 19...
Bc7 {[%clk 0:01:08]} 20. Nc6 {[%clk 0:02:55.2]} 20... Nb6 {[%clk 0:01:05.7]} 21.
Qd2 {[%clk 0:02:55.1]} 21... Qb7 {[%clk 0:00:44.8]} 22. Qxh6 {[%clk 0:02:54.2]}
22... Qxc6 {[%clk 0:00:41.1]} 23. Rd3 {[%clk 0:02:55.1]} 23... Rac8 {[%clk
0:00:16]} 24. Rh3 {[%clk 0:02:54.1]} 24... Bd8 {[%clk 0:00:05.5]} 25. Qh8+
{[%clk 0:02:53.4]} 1-0

[Event "*** Titled Tuesday Blitz"]
[Site "Chess.com"]
[Date "2019.11.05"]
[Round "3"]
[White "chanchakman"]
[Black "twitchTriniCupid"]
[Result "0-1"]
[WhiteElo "2160"]
[BlackElo "2434"]
[TimeControl "180+2"]
[EndTime "13:35:22 PST"]
[Termination "twitchTriniCupid won by resignation"]

1. g3 {[%clk 0:03:01.8]} 1... e5 {[%clk 0:02:58.1]} 2. Bg2 {[%clk 0:03:03]} 2...
Nf6 {[%clk 0:02:58.2]} 3. c4 {[%clk 0:03:03.7]} 3... g6 {[%clk 0:02:56.2]} 4.
Nc3 {[%clk 0:03:04.6]} 4... Bg7 {[%clk 0:02:57.4]} 5. d3 {[%clk 0:03:04.9]} 5...
O-O {[%clk 0:02:58.6]} 6. Nf3 {[%clk 0:03:05.9]} 6... d6 {[%clk 0:02:59.5]} 7.
O-O {[%clk 0:03:06.8]} 7... Nc6 {[%clk 0:02:59.7]} 8. Nd5 {[%clk 0:03:04.8]}
8... h6 {[%clk 0:02:55.3]} 9. Rb1 {[%clk 0:02:55]} 9... a5 {[%clk 0:02:53.7]}
10. b3 {[%clk 0:02:43]} 10... Nxd5 {[%clk 0:02:49.7]} 11. cxd5 {[%clk
0:02:41.1]} 11... Nb4 {[%clk 0:02:50.9]} 12. e4 {[%clk 0:02:21.2]} 12... Nxa2
{[%clk 0:02:50.7]} 13. Qd2 {[%clk 0:02:15.7]} 13... Nb4 {[%clk 0:02:31]} 14. Ba3
{[%clk 0:02:15.9]} 14... c5 {[%clk 0:02:31.7]} 15. dxc6 {[%clk 0:02:10.6]} 15...
Nxc6 {[%clk 0:02:29]} 16. Rfc1 {[%clk 0:02:03]} 16... Be6 {[%clk 0:02:19]} 17.
Ne1 {[%clk 0:01:14.9]} 17... Nd4 {[%clk 0:02:14.2]} 18. b4 {[%clk 0:01:15.7]}
18... Nb3 {[%clk 0:02:12.5]} 19. Qb2 {[%clk 0:01:12.1]} 19... Nxc1 {[%clk
0:02:10.5]} 20. Rxc1 {[%clk 0:01:13.1]} 20... Rc8 {[%clk 0:01:50.7]} 21. Rb1
{[%clk 0:01:13.6]} 21... a4 {[%clk 0:01:49.1]} 22. b5 {[%clk 0:00:55.5]} 22...
Bb3 {[%clk 0:01:47.1]} 23. Nf3 {[%clk 0:00:48.4]} 23... Rc2 {[%clk 0:01:46.1]}
24. Qa1 {[%clk 0:00:46.9]} 24... Ra2 {[%clk 0:01:46.3]} 0-1

[Event "*** Titled Tuesday Blitz"]
[Site "Chess.com"]
[Date "2019.11.05"]
[Round "3"]
[White "pheonixking2000"]
[Black "YQPerez"]
[Result "0-1"]
[WhiteElo "2674"]
[BlackElo "2867"]
[TimeControl "180+2"]
[EndTime "13:35:28 PST"]
[Termination "YQPerez won by resignation"]

1. b3 {[%clk 0:03:01.9]} 1... d5 {[%clk 0:02:59.3]} 2. Bb2 {[%clk 0:03:03.5]}
2... Nf6 {[%clk 0:03:00]} 3. Nf3 {[%clk 0:03:05.1]} 3... Bf5 {[%clk 0:03:00.1]}
4. g3 {[%clk 0:03:04.2]} 4... e6 {[%clk 0:02:59.2]} 5. Bg2 {[%clk 0:03:05.6]}
5... h6 {[%clk 0:02:58.8]} 6. c4 {[%clk 0:03:07.2]} 6... Be7 {[%clk 0:02:56.6]}
7. d4 {[%clk 0:03:07.2]} 7... O-O {[%clk 0:02:54.7]} 8. O-O {[%clk 0:03:07]}
8... c6 {[%clk 0:02:53.4]} 9. Nfd2 {[%clk 0:03:08.5]} 9... Nbd7 {[%clk
0:02:50.3]} 10. Nc3 {[%clk 0:03:09.7]} 10... a5 {[%clk 0:02:46.6]} 11. e4 {[%clk
0:03:10.7]} 11... dxe4 {[%clk 0:02:44.5]} 12. Ndxe4 {[%clk 0:03:12.6]} 12...
Nxe4 {[%clk 0:02:43.2]} 13. Nxe4 {[%clk 0:03:14.5]} 13... a4 {[%clk 0:02:42.3]}
14. Bc3 {[%clk 0:03:11.3]} 14... Nf6 {[%clk 0:02:40.4]} 15. Nc5 {[%clk
0:03:09.9]} 15... axb3 {[%clk 0:02:37.5]} 16. axb3 {[%clk 0:02:35.1]} 16... Rxa1
{[%clk 0:02:38.2]} 17. Qxa1 {[%clk 0:02:34.9]} 17... b6 {[%clk 0:02:38.5]} 18.
Na4 {[%clk 0:02:30.5]} 18... Ne4 {[%clk 0:02:32.6]} 19. Bb2 {[%clk 0:02:29.9]}
19... Nd2 {[%clk 0:02:31]} 20. Bxc6 {[%clk 0:01:32.2]} 20... Nxf1 {[%clk
0:02:27]} 21. Qxf1 {[%clk 0:01:34.1]} 21... Bf6 {[%clk 0:02:24]} 22. d5 {[%clk
0:01:34.5]} 22... exd5 {[%clk 0:02:19.9]} 23. Bxd5 {[%clk 0:01:22.5]} 23... Bxb2
{[%clk 0:02:08.4]} 24. Nxb2 {[%clk 0:01:24.4]} 24... Re8 {[%clk 0:02:05.2]} 25.
Nd3 {[%clk 0:01:11.3]} 25... Qf6 {[%clk 0:02:02.1]} 26. Nf4 {[%clk 0:01:06.2]}
26... Qc3 {[%clk 0:02:01.2]} 27. Kg2 {[%clk 0:00:47.7]} 27... Re1 {[%clk
0:01:57.3]} 28. Ne2 {[%clk 0:00:49]} 28... Qd2 {[%clk 0:01:46.8]} 0-1

[Event "*** Titled Tuesday Blitz"]
[Site "Chess.com"]
[Date "2019.11.05"]
[Round "3"]
[White "belisarius64"]
[Black "ER404"]
[Result "1-0"]
[WhiteElo "2595"]
[BlackElo "2272"]
[TimeControl "180+2"]
[EndTime "13:35:30 PST"]
[Termination "belisarius64 won by resignation"]

1. e4 {[%clk 0:02:56.8]} 1... c6 {[%clk 0:02:57.9]} 2. d4 {[%clk 0:02:56.5]}
2... d5 {[%clk 0:02:59.8]} 3. exd5 {[%clk 0:02:57.6]} 3... cxd5 {[%clk
0:03:00.8]} 4. Bd3 {[%clk 0:02:59.2]} 4... Nc6 {[%clk 0:03:01]} 5. c3 {[%clk
0:03:00.6]} 5... Qc7 {[%clk 0:03:00.8]} 6. h3 {[%clk 0:03:00.8]} 6... Nf6 {[%clk
0:02:47.6]} 7. Nf3 {[%clk 0:02:57.9]} 7... g6 {[%clk 0:02:48.4]} 8. O-O {[%clk
0:02:57.8]} 8... Bf5 {[%clk 0:02:49.2]} 9. Be2 {[%clk 0:02:58.6]} 9... Bg7
{[%clk 0:02:49.2]} 10. Re1 {[%clk 0:02:58.9]} 10... O-O {[%clk 0:02:49.9]} 11.
Nbd2 {[%clk 0:02:57.6]} 11... Rfe8 {[%clk 0:02:30]} 12. Nf1 {[%clk 0:02:51.1]}
12... Ne4 {[%clk 0:02:29]} 13. Ne3 {[%clk 0:02:48.2]} 13... Be6 {[%clk
0:02:16.7]} 14. Bd3 {[%clk 0:02:48.9]} 14... Nd6 {[%clk 0:02:05.7]} 15. Ng4
{[%clk 0:02:45.5]} 15... Bf5 {[%clk 0:02:06.4]} 16. Bf1 {[%clk 0:02:36.8]} 16...
Ne4 {[%clk 0:01:53.3]} 17. Ne3 {[%clk 0:02:33.4]} 17... Be6 {[%clk 0:01:53.2]}
18. c4 {[%clk 0:02:02.2]} 18... dxc4 {[%clk 0:01:53.8]} 19. d5 {[%clk
0:02:03.2]} 19... Rad8 {[%clk 0:01:53.3]} 20. Qc2 {[%clk 0:02:03.5]} 20... Nxf2
{[%clk 0:00:40.2]} 21. dxe6 {[%clk 0:01:52.9]} 21... Nd3 {[%clk 0:00:15.9]} 22.
exf7+ {[%clk 0:01:53.8]} 22... Kxf7 {[%clk 0:00:15.5]} 23. Qxc4+ {[%clk
0:01:54.1]} 1-0

[Event "*** Titled Tuesday Blitz"]
[Site "Chess.com"]
[Date "2019.11.05"]
[Round "3"]
[White "victormago"]
[Black "bubacik"]
[Result "0-1"]
[WhiteElo "2460"]
[BlackElo "2679"]
[TimeControl "180+2"]
[EndTime "13:35:59 PST"]
[Termination "bubacik won on time"]

1. d4 {[%clk 0:03:01.9]} 1... Nf6 {[%clk 0:03:00.1]} 2. c4 {[%clk 0:03:02.3]}
2... e6 {[%clk 0:03:00.7]} 3. Nc3 {[%clk 0:03:03.3]} 3... Bb4 {[%clk 0:03:01.5]}
4. Qc2 {[%clk 0:03:03.8]} 4... c5 {[%clk 0:03:01.1]} 5. dxc5 {[%clk 0:03:04.2]}
5... Nc6 {[%clk 0:03:02.1]} 6. Nf3 {[%clk 0:03:04.7]} 6... Bxc5 {[%clk
0:03:03.2]} 7. e3 {[%clk 0:03:03.5]} 7... O-O {[%clk 0:03:01.2]} 8. a3 {[%clk
0:03:04.7]} 8... d5 {[%clk 0:02:59.2]} 9. b4 {[%clk 0:03:04]} 9... Bd6 {[%clk
0:02:59]} 10. Bb2 {[%clk 0:03:04.6]} 10... Qe7 {[%clk 0:02:44.7]} 11. Rd1 {[%clk
0:03:02.9]} 11... a5 {[%clk 0:02:40.5]} 12. b5 {[%clk 0:02:36.4]} 12... Ne5
{[%clk 0:02:38.2]} 13. Nxe5 {[%clk 0:02:32]} 13... Bxe5 {[%clk 0:02:39.3]} 14.
cxd5 {[%clk 0:02:32.6]} 14... exd5 {[%clk 0:02:35.5]} 15. Nxd5 {[%clk
0:02:22.2]} 15... Nxd5 {[%clk 0:02:36.4]} 16. Rxd5 {[%clk 0:02:23.5]} 16... Bf5
{[%clk 0:02:02.6]} 17. Bd3 {[%clk 0:01:29.5]} 17... Rac8 {[%clk 0:01:15.6]} 0-1

[Event "*** Titled Tuesday Blitz"]
[Site "Chess.com"]
[Date "2019.11.05"]
[Round "3"]
[White "MarcoRiehle"]
[Black "ural58"]
[Result "0-1"]
[WhiteElo "2524"]
[BlackElo "2418"]
[TimeControl "180+2"]
[EndTime "13:36:06 PST"]
[Termination "ural58 won by resignation"]

1. e4 {[%clk 0:03:01.7]} 1... d5 {[%clk 0:02:38.2]} 2. exd5 {[%clk 0:02:58.2]}
2... Qxd5 {[%clk 0:02:38.4]} 3. Nc3 {[%clk 0:02:58.2]} 3... Qa5 {[%clk
0:02:39.2]} 4. d4 {[%clk 0:02:55.7]} 4... Nf6 {[%clk 0:02:40.1]} 5. Nf3 {[%clk
0:02:55.3]} 5... Nc6 {[%clk 0:02:40.2]} 6. Be3 {[%clk 0:02:50.6]} 6... Bg4
{[%clk 0:02:39.4]} 7. h3 {[%clk 0:02:51.8]} 7... Bh5 {[%clk 0:02:35.3]} 8. g4
{[%clk 0:02:52.6]} 8... Bg6 {[%clk 0:02:35.4]} 9. Qe2 {[%clk 0:02:53.9]} 9...
O-O-O {[%clk 0:02:32.2]} 10. O-O-O {[%clk 0:02:54.6]} 10... e6 {[%clk
0:02:31.8]} 11. Ne5 {[%clk 0:02:48.8]} 11... Nxe5 {[%clk 0:02:20.3]} 12. dxe5
{[%clk 0:02:50.7]} 12... Nd5 {[%clk 0:02:12.4]} 13. Nxd5 {[%clk 0:02:51.2]}
13... Rxd5 {[%clk 0:02:11.8]} 14. Bg2 {[%clk 0:02:50]} 14... Rxe5 {[%clk
0:01:41.8]} 15. Qc4 {[%clk 0:02:34.1]} 15... Bc5 {[%clk 0:01:24.3]} 16. Bf4
{[%clk 0:02:32.4]} 16... b5 {[%clk 0:00:48.6]} 17. Qf1 {[%clk 0:02:31.4]} 17...
Qa4 {[%clk 0:00:42.9]} 18. Kb1 {[%clk 0:02:12.1]} 18... Bxc2+ {[%clk 0:00:34]}
19. Ka1 {[%clk 0:02:13.1]} 19... Bb3 {[%clk 0:00:32.4]} 20. Rd8+ {[%clk
0:02:03.4]} 20... Rxd8 {[%clk 0:00:30.3]} 21. Qb1 {[%clk 0:02:05.3]} 21... Re2
{[%clk 0:00:21.5]} 22. Bg3 {[%clk 0:01:49]} 22... Bd4 {[%clk 0:00:21]} 23. Rc1
{[%clk 0:01:46.5]} 23... Rd7 {[%clk 0:00:17.6]} 0-1

[Event "*** Titled Tuesday Blitz"]
[Site "Chess.com"]
[Date "2019.11.05"]
[Round "3"]
[White "Saitama_Hero"]
[Black "codapbg94"]
[Result "1-0"]
[WhiteElo "2355"]
[BlackElo "2151"]
[TimeControl "180+2"]
[EndTime "13:36:06 PST"]
[Termination "Saitama_Hero won by resignation"]

1. Nf3 {[%clk 0:03:01.9]} 1... Nf6 {[%clk 0:02:59.7]} 2. c4 {[%clk 0:03:03.2]}
2... g6 {[%clk 0:03:00.4]} 3. g3 {[%clk 0:03:02.4]} 3... Bg7 {[%clk 0:03:01.3]}
4. Bg2 {[%clk 0:03:04]} 4... O-O {[%clk 0:03:01.5]} 5. O-O {[%clk 0:03:05.5]}
5... d6 {[%clk 0:03:02.5]} 6. d4 {[%clk 0:03:05.5]} 6... c6 {[%clk 0:03:00]} 7.
Nc3 {[%clk 0:03:05.6]} 7... Qb6 {[%clk 0:03:00.5]} 8. Re1 {[%clk 0:02:59.4]}
8... Qa6 {[%clk 0:02:46]} 9. b3 {[%clk 0:02:58.4]} 9... b5 {[%clk 0:02:27.9]}
10. cxb5 {[%clk 0:02:51.9]} 10... cxb5 {[%clk 0:02:29.8]} 11. e4 {[%clk
0:02:51.8]} 11... Bb7 {[%clk 0:02:13.8]} 12. Bf1 {[%clk 0:02:31.5]} 12... Qa5
{[%clk 0:02:14.2]} 13. b4 {[%clk 0:02:01.7]} 13... Qxb4 {[%clk 0:02:04.5]} 14.
Bd2 {[%clk 0:02:03.1]} 14... Qa5 {[%clk 0:01:29.8]} 15. Nxb5 {[%clk 0:01:59.3]}
15... Qd8 {[%clk 0:01:30]} 16. Bd3 {[%clk 0:01:51]} 16... Nc6 {[%clk 0:01:15]}
17. Rb1 {[%clk 0:01:48.6]} 17... Nd7 {[%clk 0:01:12.9]} 18. Nxd6 {[%clk
0:01:46.7]} 18... exd6 {[%clk 0:01:09.7]} 19. Rxb7 {[%clk 0:01:47.9]} 19... Nxd4
{[%clk 0:01:08.9]} 20. Nxd4 {[%clk 0:01:41.5]} 20... Bxd4 {[%clk 0:00:56.8]} 21.
Qa4 {[%clk 0:01:17.7]} 21... Nc5 {[%clk 0:00:51.9]} 22. Qxd4 {[%clk 0:01:19]}
22... Nxb7 {[%clk 0:00:48.6]} 23. Bh6 {[%clk 0:01:20.5]} 23... f6 {[%clk
0:00:43.3]} 24. Bxf8 {[%clk 0:01:20.8]} 24... Qxf8 {[%clk 0:00:42.5]} 25. Qd5+
{[%clk 0:01:21.3]} 25... Qf7 {[%clk 0:00:42.7]} 26. Bc4 {[%clk 0:01:22.9]} 1-0

[Event "*** Titled Tuesday Blitz"]
[Site "Chess.com"]
[Date "2019.11.05"]
[Round "3"]
[White "Bishops83"]
[Black "ExploringChess"]
[Result "0-1"]
[WhiteElo "2277"]
[BlackElo "2712"]
[TimeControl "180+2"]
[EndTime "13:36:17 PST"]
[Termination "ExploringChess won by resignation"]

1. e4 {[%clk 0:03:00]} 1... e6 {[%clk 0:02:38.6]} 2. d4 {[%clk 0:03:00]} 2... d5
{[%clk 0:02:39.1]} 3. Nc3 {[%clk 0:02:59.5]} 3... Nf6 {[%clk 0:02:39.4]} 4. Bg5
{[%clk 0:02:56.9]} 4... Be7 {[%clk 0:02:39.5]} 5. e5 {[%clk 0:02:55.7]} 5...
Nfd7 {[%clk 0:02:40.6]} 6. h4 {[%clk 0:02:55.9]} 6... c5 {[%clk 0:02:41.7]} 7.
Bxe7 {[%clk 0:02:44.9]} 7... Kxe7 {[%clk 0:02:43.6]} 8. Qg4 {[%clk 0:02:41.8]}
8... cxd4 {[%clk 0:02:42.8]} 9. Qg5+ {[%clk 0:02:27.9]} 9... Ke8 {[%clk
0:02:40.5]} 10. Qxg7 {[%clk 0:02:27.2]} 10... Rf8 {[%clk 0:02:39.3]} 11. Nb5
{[%clk 0:02:16.3]} 11... Qa5+ {[%clk 0:02:35]} 12. Kd1 {[%clk 0:02:01]} 12...
Nc6 {[%clk 0:02:35.3]} 13. f4 {[%clk 0:01:53.7]} 13... Kd8 {[%clk 0:01:27.1]}
14. Nf3 {[%clk 0:01:51.4]} 14... Qb4 {[%clk 0:01:27.6]} 15. Kc1 {[%clk
0:01:46.3]} 15... a6 {[%clk 0:01:27.8]} 16. Nd6 {[%clk 0:01:41.6]} 16... d3
{[%clk 0:01:24.8]} 17. Bxd3 {[%clk 0:01:41.4]} 17... Qxf4+ {[%clk 0:01:24.4]}
18. Kb1 {[%clk 0:01:42.2]} 18... Kc7 {[%clk 0:01:19.5]} 19. Re1 {[%clk
0:01:34.4]} 19... f6 {[%clk 0:01:19.5]} 20. Nf7 {[%clk 0:01:24]} 20... fxe5
{[%clk 0:01:16.9]} 21. N7g5 {[%clk 0:01:20.2]} 21... Kb6 {[%clk 0:01:11.4]} 22.
Nxe6 {[%clk 0:01:19.3]} 22... Qf6 {[%clk 0:01:09.7]} 23. Qxf6 {[%clk 0:00:49.3]}
23... Rxf6 {[%clk 0:01:11.6]} 24. Neg5 {[%clk 0:00:49.1]} 24... e4 {[%clk
0:01:10.2]} 25. Nxh7 {[%clk 0:00:48.2]} 25... Rh6 {[%clk 0:01:10.1]} 26. Nhg5
{[%clk 0:00:44.3]} 26... exf3 {[%clk 0:01:10.1]} 27. Nxf3 {[%clk 0:00:44.3]}
27... Nf6 {[%clk 0:01:08.8]} 28. c4 {[%clk 0:00:41.7]} 28... dxc4 {[%clk
0:01:08.9]} 29. Bxc4 {[%clk 0:00:43.6]} 29... Bf5+ {[%clk 0:01:09.2]} 30. Kc1
{[%clk 0:00:43.9]} 30... Rc8 {[%clk 0:01:10.1]} 0-1

[Event "*** Titled Tuesday Blitz"]
[Site "Chess.com"]
[Date "2019.11.05"]
[Round "3"]
[White "GianmarcoVaR"]
[Black "Iyael"]
[Result "0-1"]
[WhiteElo "2517"]
[BlackElo "2105"]
[TimeControl "180+2"]
[EndTime "13:36:25 PST"]
[Termination "Iyael won by checkmate"]

1. d4 {[%clk 0:02:55.3]} 1... Nf6 {[%clk 0:02:59.6]} 2. Nf3 {[%clk 0:02:54.7]}
2... g6 {[%clk 0:02:59.9]} 3. c4 {[%clk 0:02:55.6]} 3... Bg7 {[%clk 0:03:00.2]}
4. g3 {[%clk 0:02:57.2]} 4... d6 {[%clk 0:03:01.1]} 5. Bg2 {[%clk 0:02:58.5]}
5... O-O {[%clk 0:03:02]} 6. O-O {[%clk 0:02:59.6]} 6... Nbd7 {[%clk 0:03:02.9]}
7. Nc3 {[%clk 0:02:57.7]} 7... e5 {[%clk 0:03:03.7]} 8. e4 {[%clk 0:02:59.2]}
8... c6 {[%clk 0:03:04.5]} 9. h3 {[%clk 0:02:59]} 9... Qb6 {[%clk 0:03:03.4]}
10. Rb1 {[%clk 0:02:54.1]} 10... a5 {[%clk 0:02:55.7]} 11. Be3 {[%clk
0:02:45.7]} 11... Qc7 {[%clk 0:02:48.7]} 12. Re1 {[%clk 0:02:34.6]} 12... Re8
{[%clk 0:02:48.3]} 13. d5 {[%clk 0:02:28.8]} 13... Nf8 {[%clk 0:02:45]} 14. Qd2
{[%clk 0:02:11.7]} 14... Bd7 {[%clk 0:02:39.7]} 15. dxc6 {[%clk 0:02:04.1]}
15... Bxc6 {[%clk 0:02:36.1]} 16. Nh2 {[%clk 0:01:55.1]} 16... Ne6 {[%clk
0:02:33.8]} 17. Nd5 {[%clk 0:01:39.6]} 17... Bxd5 {[%clk 0:02:33.3]} 18. cxd5
{[%clk 0:01:39.1]} 18... Nc5 {[%clk 0:02:34.1]} 19. Rbc1 {[%clk 0:01:22.8]}
19... b6 {[%clk 0:02:31.9]} 20. f3 {[%clk 0:01:13.4]} 20... Qd7 {[%clk
0:02:31.3]} 21. Bf1 {[%clk 0:01:11.7]} 21... Rec8 {[%clk 0:02:27]} 22. Rc2
{[%clk 0:01:05.7]} 22... Nfxe4 {[%clk 0:02:18.6]} 23. fxe4 {[%clk 0:01:06.7]}
23... Nxe4 {[%clk 0:02:19.7]} 24. Rxc8+ {[%clk 0:01:08.3]} 24... Rxc8 {[%clk
0:02:18.5]} 25. Qg2 {[%clk 0:01:00.7]} 25... f5 {[%clk 0:02:14.2]} 26. Bxb6
{[%clk 0:00:54.3]} 26... Qb7 {[%clk 0:02:11.6]} 27. Bxa5 {[%clk 0:00:48.7]}
27... Qxd5 {[%clk 0:02:12]} 28. b4 {[%clk 0:00:22.4]} 28... Rc3 {[%clk 0:02:12]}
29. b5 {[%clk 0:00:21.5]} 29... Rxg3 {[%clk 0:02:10.4]} 30. a4 {[%clk
0:00:04.2]} 30... Rxg2+ {[%clk 0:02:09.8]} 31. Bxg2 {[%clk 0:00:05.1]} 31...
Qd4+ {[%clk 0:02:10.9]} 32. Kh1 {[%clk 0:00:04]} 32... Ng3# {[%clk 0:02:11.3]}
0-1

[Event "*** Titled Tuesday Blitz"]
[Site "Chess.com"]
[Date "2019.11.05"]
[Round "3"]
[White "mikhaillushenkov"]
[Black "joppie2"]
[Result "1-0"]
[WhiteElo "2708"]
[BlackElo "2880"]
[TimeControl "180+2"]
[EndTime "13:36:33 PST"]
[Termination "mikhaillushenkov won by resignation"]

1. Nf3 {[%clk 0:03:01.9]} 1... d5 {[%clk 0:03:00.5]} 2. d4 {[%clk 0:03:00.2]}
2... Nf6 {[%clk 0:03:01.3]} 3. c4 {[%clk 0:02:58]} 3... dxc4 {[%clk 0:03:03.2]}
4. e3 {[%clk 0:02:58.6]} 4... Bg4 {[%clk 0:02:58.8]} 5. Bxc4 {[%clk 0:02:59.1]}
5... e6 {[%clk 0:03:00.1]} 6. Be2 {[%clk 0:02:58.1]} 6... c5 {[%clk 0:02:59.5]}
7. Nc3 {[%clk 0:02:56.5]} 7... Nc6 {[%clk 0:03:00.3]} 8. Qa4 {[%clk 0:02:45.8]}
8... Qd7 {[%clk 0:02:49.4]} 9. dxc5 {[%clk 0:02:44]} 9... Bxc5 {[%clk
0:02:46.4]} 10. O-O {[%clk 0:02:42.8]} 10... O-O {[%clk 0:02:46.1]} 11. Rd1
{[%clk 0:02:43.5]} 11... Qe7 {[%clk 0:02:46.8]} 12. Bd2 {[%clk 0:02:37.9]} 12...
Rfd8 {[%clk 0:02:46.3]} 13. Be1 {[%clk 0:02:37.9]} 13... h6 {[%clk 0:02:38.5]}
14. Rac1 {[%clk 0:02:35.9]} 14... a6 {[%clk 0:02:38.7]} 15. a3 {[%clk
0:02:33.6]} 15... e5 {[%clk 0:02:30.4]} 16. Ne4 {[%clk 0:02:24.9]} 16... Nxe4
{[%clk 0:02:31.2]} 17. Qxe4 {[%clk 0:02:26.8]} 17... Bh5 {[%clk 0:02:26.9]} 18.
Bc4 {[%clk 0:02:17.1]} 18... Kh8 {[%clk 0:02:21.7]} 19. Rxd8+ {[%clk 0:02:12.8]}
19... Rxd8 {[%clk 0:02:22.5]} 20. Nh4 {[%clk 0:02:14.4]} 20... Qf6 {[%clk
0:02:09.9]} 21. h3 {[%clk 0:01:58.5]} 21... Be7 {[%clk 0:02:09.8]} 22. Nf5
{[%clk 0:01:56]} 22... Bg6 {[%clk 0:02:09.9]} 23. g4 {[%clk 0:01:56.9]} 23...
Bf8 {[%clk 0:02:11.4]} 24. Bc3 {[%clk 0:01:37.7]} 24... Rd7 {[%clk 0:02:01.1]}
25. f4 {[%clk 0:01:33.3]} 25... Bxf5 {[%clk 0:01:49.5]} 26. gxf5 {[%clk
0:01:31.5]} 26... Qh4 {[%clk 0:01:50.5]} 27. Qf3 {[%clk 0:01:17.5]} 27... exf4
{[%clk 0:01:42.1]} 28. exf4 {[%clk 0:01:18.5]} 28... Nd4 {[%clk 0:01:40.5]} 29.
Bxd4 {[%clk 0:01:19.6]} 29... Rxd4 {[%clk 0:01:42.4]} 30. Bxf7 {[%clk
0:01:16.6]} 30... Rxf4 {[%clk 0:01:42.3]} 31. Rc8 {[%clk 0:01:13]} 31... Qg5+
{[%clk 0:01:32.3]} 32. Kh1 {[%clk 0:01:09.6]} 32... g6 {[%clk 0:01:10.4]} 33.
Qc3+ {[%clk 0:00:58.2]} 33... Kh7 {[%clk 0:00:58.1]} 34. fxg6+ {[%clk 0:00:58]}
1-0